Cogmind - Beta 16.1 @@@ ROGUE MODE // 2026.04.17 @ 02:58:50 Player: Shimejimeji Result: Destroyed by G-34 Mercenary with Small Laser Performance ------------- Evolutions (0) 0 Regions Visited (2) 400 Robots Destroyed (40) 200 Value Destroyed (1011) 1011 Prototype IDs (0) 0 Alien Tech Used (0) 0 Bonus (0) 0 TOTAL SCORE: 1611 Bonus ------- None Cogmind --------- Core Integrity 0/250 Matter 272/300 Energy 170/170 System Corruption 0% Temperature Cool (86) Movement Treading (160) Location -10/Subcaves Parts ------- > --- POWER (1) -------- Makeshift Power Source > --- PROPULSION (2) --- Improved Treads Spiked Treads > --- UTILITY (2) ------ Large Storage Unit Seismic Detector > --- WEAPON (2) ------- Subdweller Beam Cannon Heavy Assault Rifle > --- INVENTORY (15) --- Hacking Suite Heavy Assault Rifle Hammer Peak State ------------ > --- POWER ------------ Makeshift Power Source > --- PROPULSION ------- Improved Treads Improved Treads > --- UTILITY ---------- Scrap Shield > --- WEAPON ----------- Subdweller Beam Cannon Heavy Assault Rifle > --- INVENTORY -------- Large Storage Unit Seismic Detector Hacking Suite Heavy Assault Rifle Hammer [Rating: 16] Favorites ----------- Power Light Ion Engine Engine Light Ion Engine Propulsion Improved Treads Treads Improved Treads Wheel Wheel Utility Seismic Detector Device Seismic Detector Storage Large Storage Unit Protection Scrap Shield Weapon Heavy Assault Rifle Energy Gun Medium Laser Energy Cannon Subdweller Beam Cannon Ballistic Gun Heavy Assault Rifle Ballistic Cannon Light Cannon Impact Weapon Hammer Build | -11 -10 -10 ------- Run | Yrd Mat Sub Slots Evolved . | . . . Power . | . . . Propulsion . | . . . Utility . | . . . Weapon . | . . . Parts Attached 30 | 7 10 13 Power 7 | 1 1 5 Engine 7 | 1 1 5 Core . | . . . Reactor . | . . . Propulsion 7 | 2 2 3 Treads 5 | . 2 3 Leg . | . . . Wheel 2 | 2 . . Hover . | . . . Flight . | . . . Utility 6 | 2 2 2 Device 3 | 1 1 1 Storage 2 | 1 1 . Processor . | . . . Hackware . | . . . Protection 1 | . . 1 Artifact . | . . . Weapon 10 | 2 5 3 Energy Gun 2 | 1 . 1 Energy Cannon 1 | . . 1 Ballistic Gun 5 | 1 3 1 Ballistic Cannon 1 | . 1 . Launcher . | . . . Special Weapon . | . . . Impact Weapon 1 | . 1 . Slashing Weapon . | . . . Piercing Weapon . | . . . Special Melee Weapon . | . . . Unidentified Prototypes . | . . . Parts Lost 8 | . 2 6 Power 3 | . 1 2 Propulsion 2 | . . 2 Utility 3 | . 1 2 Weapon . | . . . Highest Loss Streak 4 | . 1 4 To Critical Strikes . | . . . Average Backups 9 | 2 11 8 Power . | . 1 . Propulsion 2 | 1 3 1 Utility 2 | . 1 2 Weapon 3 | . 4 3 Tool/Special . | . . . Unused Backups 9 | . 5 4 Power 1 | . 1 . Propulsion 2 | . 2 . Utility 3 | . . 3 Weapon 3 | . 2 1 Tool/Special . | . . . Average Slot Usage (%) 93 | . 96 91 Engine 13 | . 14 13 Treads 17 | . . 27 Wheel 10 | . 27 . Device 9 | . 13 6 Storage 9 | . 14 7 Protection 4 | . . 6 Energy Cannon 4 | . . 7 Ballistic Gun 15 | . 22 10 Ballistic Cannon 3 | . . 5 Impact Weapon 2 | . 2 2 Peak Build Rating 16 | 7 12 16 Average Rating 11 | 5 9 13 On Entrance 6 | . 7 12 Avg Prop Armor Cover (%) . | . . . Naked Turns . | . . . Heaviest Build 36 | 13 30 36 Greatest Support 46 | 26 46 46 Greatest Overweight (x) 2 | 2 1 1 Average Overweight (x) . | . . . Largest Inventory Capacity 15 | 8 15 15 Average Capacity 11 | 7 13 10 Most Carried 15 | 6 15 14 Average Carried 9 | 3 11 8 Final Capacity 15 | 8 15 15 Final Carried 13 | 6 13 3 Class Distribution -------------------- 80% | Mutant 19% | Subdweller-Mutant Dominant Class ---------------- Mutant | -10/Materials Mutant | -10/Subcaves Resources | -11 -10 -10 ----------- Run | Yrd Mat Sub Matter Collected 1097 | 297 400 400 Remotely . | . . . Salvage Created 1250 | 118 594 538 Parts 92 | 12 42 38 Haulers Intercepted 1 | . 1 . Recyclers Shooed 1 | 1 . . Parts Field Recycled . | . . . Retrieved Matter . | . . . Parts Self-Destructed 15 | . . 15 Prevented . | . . . Parts Restored . | . . . Kills | -11 -10 -10 ------- Run | Yrd Mat Sub Combat Hostiles Destroyed 29 | . 14 15 Melee 1 | . 1 . Guns 15 | . 12 3 Cannons 11 | . . 11 Classes Destroyed 9 | 2 5 2 Tunneler 5 | 3 2 . Hauler 1 | . 1 . Recycler 1 | 1 . . Operator 1 | . 1 . Watcher 3 | . 3 . Swarmer 8 | . 5 3 Grunt 10 | . 9 1 Sentry 1 | . . 1 Subdweller 10 | . . 10 Best Kill Streak 4 | 4 3 3 Combat Bots Only 3 | . 3 3 Max Kills in Single Turn 1 | 1 1 1 Gunslinging . | . . . Exploded . | . . . Melee 1 | . 1 . Uniques/NPCs Destroyed . | . . . Combat | -11 -10 -10 -------- Run | Yrd Mat Sub Hostile Shots Fired 180 | . 57 123 Missed 41 | . 17 24 Hits 139 | . 40 99 Projectile 139 | . 40 99 Critical Strikes 6 | . 1 5 Damage Taken 2226 | . 426 1800 Core 258 | . 53 205 Absorbed by Shields . | . . . Regen/Repaired (Parts) 132 | . 132 . Core Remaining (%) 100 | 100 . . Volleys Fired 127 | 9 55 63 Largest 2 | 2 2 2 Hottest 140 | 70 46 140 Shots Fired 235 | 18 110 107 Gun 182 | 18 110 54 Cannon 53 | . . 53 Launcher . | . . . Special . | . . . Kinetic 181 | 9 110 62 Thermal 54 | 9 . 45 Explosive . | . . . Electromagnetic . | . . . Robot Hit Streak 13 | 5 7 13 Robot Miss Streak 9 | 1 9 2 Penetration Max . | . . . Secondary Targets . | . . . Shots Hit Robots 169 | 12 70 87 Core Hits 49 | 5 24 20 Critical Kills . | . . . Critical Parts Destroyed 5 | . 4 1 Critical Strikes 8 | 2 4 2 Burn 2 | 2 . . Destroy 3 | . 2 1 Smash 3 | . 2 1 Melee Attacks 29 | . 15 14 Impact 29 | . 15 14 Slashing . | . . . Piercing . | . . . Sneak Attacks . | . . . Combat Hostiles . | . . . Follow-up Attacks . | . . . Damage Inflicted 3151 | 148 1150 1853 Guns 1759 | 148 1000 611 Cannons 945 | . . 945 Explosions . | . . . Melee 447 | . 150 297 Ramming . | . . . Kinetic 1778 | 85 1000 693 Thermal 926 | 63 . 863 Explosive . | . . . Electromagnetic . | . . . Impact 447 | . 150 297 Slashing . | . . . Piercing . | . . . Highest Corruption . | . . . Average Corruption . | . . . Corruption Purged . | . . . Corruption Blocked . | . . . Overload Shots . | . . . Overflow Damage 113 | . 59 54 Projectiles 8 | . . 8 Explosions . | . . . Melee 105 | . 59 46 Knockbacks 3 | . 3 . Impact 2 | . 2 . Kinetic . | . . . Secondary 1 | . 1 . Self-Inflicted Damage . | . . . Shots . | . . . Rammed . | . . . Targets Rammed . | . . . Kicked . | . . . Crushed . | . . . Highest Temperature 81 | 36 4 81 Average Temperature 20 | 14 2 29 Received Heat Transfer 654 | . 156 498 Siege Activations . | . . . Martial Activations . | . . . Shielding Activations . | . . . Robots Disrupted . | . . . Combat Hostiles . | . . . Robots Corrupted 2 | . 1 1 Combat Hostiles 2 | . 1 1 Parts Fried 2 | . 2 . Impact Corruptions 4 | . 2 2 Robots Melted . | . . . Combat Hostiles . | . . . Parts Melted 5 | . . 5 Heat Transferred 1481 | 333 . 1148 Parts Sabotaged . | . . . Parts Stolen . | . . . Parts Stripped . | . . . Power Chain Reactions . | . . . Alert | -11 -10 -10 ------- Run | Yrd Mat Sub Maximum Alert Level . | . . . Low Security (%) 100 | 100 100 . Level 1 . | . . . Level 2 . | . . . Level 3 . | . . . Level 4 . | . . . Level 5 . | . . . High Security . | . . . Max Security . | . . . Peak Influence 106 | 10 106 . Initial . | . . . Average 41 | 1 44 . Influence Increases 683 | 20 448 215 Destroy 0b10 Robot/C 380 | . 280 100 Destroy 0b10 Robot/NC 55 | 20 35 . Destroy Leader 88 | . 78 10 Successful Hack 17 | . 17 . Destroy Structure 8 | . 8 . Lose Combat Pursuer 135 | . 30 105 Influence Decreases 514 | 20 415 79 Entered New Map 17 | . . 17 Time Decay 467 | 20 395 52 Lost Part 30 | . 20 10 Squads Dispatched 6 | . 6 . Investigation 5 | . 5 . Extermination . | . . . Reinforcement 1 | . 1 . Assault . | . . . Garrison . | . . . Intercept . | . . . Searches Triggered . | . . . Construction Impeded . | . . . Haulers Reinforced . | . . . Active Scanning Responses . | . . . Cargo Convoy Interrupts . | . . . Stealth | -11 -10 -10 --------- Run | Yrd Mat Sub Distress Signals 1 | . 1 . Communications Jammed . | . . . Distress Signals . | . . . Times Spotted 49 | . 25 24 Peak Tracking Total 4 | . 4 4 Tactical Retreats 4 | . 2 2 Traps | -11 -10 -10 ------- Run | Yrd Mat Sub Traps Triggered 3 | . 3 . Indirectly . | . . . Trap Hack Attempts . | . . . Triggered . | . . . Disarmed . | . . . Reprogrammed . | . . . Reused . | . . . Traps Extracted . | . . . Installed . | . . . Triggered . | . . . Machines | -11 -10 -10 ---------- Run | Yrd Mat Sub Machines Disabled . | . . . Max in Single Turn . | . . . Machines Repaired . | . . . Machines Dismantled . | . . . Machines Sabotaged . | . . . Overloaded Fab Kills . | . . . Hacking | -11 -10 -10 --------- Run | Yrd Mat Sub Machines Accessed 8 | . 7 1 Terminals 5 | . 5 . Fabricators . | . . . Repair Stations 1 | . 1 . Recycling Units 1 | . 1 . Scanalyzers . | . . . Garrison Access . | . . . Total Hacks 24 | . 20 4 Successful 13 | . 9 4 Failed 11 | . 11 . Catastrophic 3 | . 3 . Database Lockouts . | . . . Manual 12 | . 12 . Terminals 14 | . 14 . Fabricators . | . . . Repair Stations 4 | . 4 . Recycling Units 2 | . 2 . Scanalyzers . | . . . Garrison Access . | . . . Terminal Hacks 7 | . 3 4 Record 5 | . 1 4 Terminal Index 1 | . 1 . Dispatch Records 1 | . 1 . Fabricator Hacks . | . . . Repair Station Hacks 4 | . 4 . Scan Component 2 | . 2 . Repair 2 | . 2 . Recycling Unit Hacks . | . . . Scanalyzer . | . . . Garrison Access Hacks . | . . . Unauthorized Hacks 2 | . 2 . Terminals 2 | . 2 . Botnet 1 | . 1 . Operators 1 | . 1 . Fabricators . | . . . Repair Stations . | . . . Recycling Units . | . . . Scanalyzers . | . . . Garrison Access . | . . . Data Cores Recovered . | . . . Used . | . . . Hacking Detections 7 | . 7 . Full Trace Events 2 | . 2 . Feedback Events . | . . . Feedback Blocked . | . . . Robot Schematics Acquired . | . . . Robots Built . | . . . Authchips . | . . . Time . | . . . Total Robot Build Rating . | . . . Part Schematics Acquired . | . . . Parts Built . | . . . Authchips . | . . . Time . | . . . Total Part Build Rating . | . . . Part Studies Acquired . | . . . Parts Repaired 2 | . 2 . Time 64 | . 64 . Parts Recycled . | . . . Recycled Matter . | . . . Retrieved Matter . | . . . Retrieved Components . | . . . Parts Scanalyzed . | . . . Part Schematics Acquired . | . . . Parts Damaged . | . . . Bothacking | -11 -10 -10 ------------ Run | Yrd Mat Sub Used RIF Installer . | . . . Robots Hacked . | . . . Non-combat . | . . . Combat . | . . . Robot Hacks Applied . | . . . Relay Couplers Released . | . . . Fabnet Peak Effective % . | . . . Robots Rewired . | . . . Allies Hacked . | . . . Hacks Repelled . | . . . Allies | -11 -10 -10 -------- Run | Yrd Mat Sub Total Allies . | . . . Largest Group . | . . . Highest-Rated Group . | . . . Highest-Rated Ally . | . . . Total Orders . | . . . Ally Attacks . | . . . Total Damage . | . . . Kills . | . . . Allies Corrupted . | . . . Allies Melted . | . . . Intel | -11 -10 -10 ------- Run | Yrd Mat Sub Active Infowar (turns) 2453 | 14 1347 1092 Seismic 2453 | 14 1347 1092 Robot Analysis Total . | . . . Derelict Logs Recovered 2 | . . 2 Drone Launches . | . . . Drone Recoveries . | . . . Exploration | -11 -10 -10 ------------- Run | Yrd Mat Sub Turns Passed 3848 | 119 1453 2276 Spaces Moved 2200 | 83 973 1144 Core 8 | 8 . . Treads 1147 | . 3 1144 Legs . | . . . Wheels 1045 | 75 970 . Hover . | . . . Flight . | . . . Fastest Speed 50 | 50 90 160 Average Speed 130 | 90 99 160 Slowest Speed 240 | 150 160 240 Overloaded Moves . | . . . Propulsion Burnouts . | . . . Robots Hopped . | . . . Potential Cave-ins . | . . . Cave-ins Triggered . | . . . Exploration Rate (%) 51 | 3 99 53 Regions Visited 2 Branch Regions 1 Pre-discovered Areas 4 | . . 4 Known Exits Taken . | . . . Unknown Exits Taken 2 | 1 1 . Scrap Searched 3 | . . 3 Spaces Dug 7 | . 7 . Terrain Destroyed 13 | . 7 6 Melee 7 | . 7 . Projectile 6 | . . 6 AOE . | . . . Terrain Rammed . | . . . Walls Destroyed . | . . . Machines Disabled . | . . . Actions | -11 -10 -10 --------- Run | Yrd Mat Sub Total 2882 | 105 1319 1458 Wait 427 | . 242 185 Move 2198 | 82 972 1144 Hop . | . . . Pick Up 28 | 7 14 7 Fast Attach 10 | 6 3 1 Attach 11 | 1 2 8 Detach 2 | . 1 1 Swap 20 | . 7 13 Drop 22 | . 8 14 Fire 127 | 9 55 63 Melee 29 | . 15 14 Ram . | . . . Kick . | . . . Crush . | . . . Escape Stasis . | . . . Rewire . | . . . Trap . | . . . Miscellaneous 8 | . . 8 Route ------- -11/Scrapyard -10/Materials (discovered 6 exits: [*Mat x3] / [*Min x2] / *Sub) -10/Subcaves (discovered 2 exits: [*Mat] / [*Rec]) History --------- Turn | Location | Event 14 | -11/Scrapyard | Discovered new exit (range 16) 120 | -11/Scrapyard | Entered Materials 311 | -10/Materials | Build established: Mutant 432 | -10/Materials | Discovered new exit (range 5) 615 | -10/Materials | Discovered new exit (range 13) 988 | -10/Materials | Discovered new exit (range 16) 1188 | -10/Materials | Repaired Hvy. Assault Rifle 1222 | -10/Materials | Repaired Hvy. Assault Rifle 1256 | -10/Materials | Discovered new exit (range 16) 1344 | -10/Materials | Discovered new exit (range 15) 1559 | -10/Materials | Discovered new exit (range 8) 1573 | -10/Materials | Entered Subcaves 1574 | -10/Subcaves | Approached by a straggling Scientist 1641 | -10/Subcaves | A swath of the cavern ceiling suddenly collapsed 1730 | -10/Subcaves | Learned location of Storage (-7) 2093 | -10/Subcaves | A swath of the cavern ceiling suddenly collapsed 2325 | -10/Subcaves | Shifting Twisted Machinery released Sub. Laser 2340 | -10/Subcaves | Shifting Twisted Machinery released Battle Rifle 2423 | -10/Subcaves | Visited Clippyterm 2427 | -10/Subcaves | Learned 40 Factory zone layouts 2427 | -10/Subcaves | Learned location of Extension (-5) 2512 | -10/Subcaves | Disturbed a concealed Subdweller 2545 | -10/Subcaves | Core integrity fell below 50% 2580 | -10/Subcaves | Lost 4 parts (1p2n1u) 2840 | -10/Subcaves | Learned location of Zion (-7) 2840 | -10/Subcaves | Met a Zionite searching for "candidates" 3051 | -10/Subcaves | Build established: Subdweller-Mutant 3697 | -10/Subcaves | Discovered new exit (range 10) 3697 | -10/Subcaves | Discovered new exit (range 10) 3738 | -10/Subcaves | Core integrity fell below 20% 3818 | -10/Subcaves | Build established: Mutant 3849 | -10/Subcaves | Destroyed by G-34 Mercenary with Small Laser Last Messages --------------- Destroyed Flight Unit. S-10 Pest destroyed. Flight Unit fries itself beyond repair. Flight Unit melted. S-10 Pest destroyed. Lgt. Ion Engine fries itself beyond repair. S-10 Pest destroyed. Acquired 30 matter. Acquired 14 matter. EXIT=FOUND Lgt. Assault Rifle fries itself beyond repair. Flight Unit fries itself beyond repair. Dropped Imp. Treads. 71-KDN(R) destroyed. Scrap Shield destroyed. 9D-SWN(R) affixes Scrap Shield Fragment to Scrap Shield. 9D-SWN(R) destroyed. Acquired 29 matter. Acquired 10 matter. G-47 Trooper destroyed. Map ----- +----------------------------------------------------+ | ?????????????????????????????????????????????????? | | ?????????????????????????????????????????????????? | | ?????????????????????????????????????????????????? | | ?????????????????????????????????????????????????? | | ?????????????????????????????????????????????????? | | ?????????????????????????????????????????????????? | | ?????????????????????????????????????????????????? | | ?????????????????????????????????????????????????? | | ?????????????????????????????????????????????????? | | ?????????????????????????????????????????????????? | | ?????????????????????????????????????????????????? | | ??????????????????? *????????????????????????????? | | ????????????????? ? %????????????????????????????? | | ????????????????? &????????????????????????????? | | ?????????????????? ????????????????????????????? | | ?????????????????? ???????????##???????????????? | | ??????????????#??? ??????????" ##??????????????? | | ??????????????# ?? ??????????" #??????????????? | | ??????????????? ??? #?????????" #??????????????? | | ???????????????# ?? #??????### ""##?????????????? | | ???????????#??## ? ???????"""" ##????????????? | | ??????????## ## ## ???????# #????????????? | | ??????????# # ????#### ########??#???? | | ???????????? # #???## ### # # # ##??? | | ???????????????# ##### # #??? | | ?????# ### ##;@## " #??? | | ?????# g%[ """ ###### | | ?????# = " ##????# | | ??????# ;#### #?????# | | ??????###### ###?## # #?????? | | ???????????## # ## ! ####??????? | | ????????????## = ==!##?????????? | | ?????????????# #### |% !% ###?????????? | | ?????????????##???# ## ###= ""&* "#?????????? " | | ?????????????????# ?# ##"" #???????????## | | ?????????????????## # "< ##?????#####??? | | ??????????????????#### "" "#???? """#??? | | ?????????????????????## # ####"## "#??? "#??? | | ??????????????????????#####??#### ##### "#??? | | ???????????????????????????????## "[" ""##?? | | ???????????????????????????????#"!="% <#?? | | ???????????????????????????????###*% " ""#??? | | ?????????????????????????????????##[ ### "#??? | | ?????????????????????????????????# ##?? "#??# | | ?????????????????????????????????# ##?????????# | | ?????????????????????????????????# ##????????# | | ?????????????????????????????????# #????????? | | ?????????????????????????????????## " " ##?????### | | ????????????????????????????????###### " #?????# | | ???????????????????????????????## #### ##????## | +----------------------------------------------------+ Best States ------------- Heat Dissipation 25 Energy Generation 15 Energy Capacity 200 Matter Stores 300 Matter Capacity 300 Sight Range 16 Terrain Scan Density 10 Armor Coverage 800 Evasion (%) 42 Recoil Reduction 2 Item Schematics ----------------- None Robot Schematics ------------------ None Fabricated ------------ Nothing Repaired ---------- Hvy. Assault Rifle | 28% | -10/Materials Hvy. Assault Rifle | 56% | -10/Materials Studied --------- None Alien Tech Used ----------------- None Achievements -------------- None Challenges ------------ None Game ------ Seed ShiftSegregatorInjector Manual? 0 Play Time 00:28:58 Cumulative 26.4 hours Start 2026.04.17 @ 02:30:50 End 2026.04.17 @ 02:58:50 Sessions 1 Manual Loads 0 Difficulty Rogue Special Mode None Game No. 20 Rogue 20 Adventurer 0 Explorer 0 Win Type - Total 0 Types 0/0/0/0/0/0/0/0/0/0 Lore% 24 Gallery% 20 Achievement% 21 Wizard Run 0 Options --------- Layout 0 ASCII 0 Keyboard 1 Movement Arrows Keybinds 0 Fullscreen 2 Font 18/SmallcapsGlow Map View 76x50 Zoom Use 0% Tactical HUD 0 Map Filters NONE Filters NONE Steam 1 RUN: 41830e76-0d26-4fed-bb9c-543a07e0a52b